bitfinex/quotes_ETHUSD_20220227
["timestamp","ask_amount","ask_price","bid_price","bid_amount"]
[1645990802185,1.27764087,2656.0,2654.6,0.1506]
[1645990802186,0.3646,2655.9,2654.6,0.1506]
[1645990802384,0.3646,2655.7,2655.3,0.00221207]
[1645990802787,1.27764087,2655.6,2655.3,0.00221207]
[1645990802990,1.27764087,2655.5,2655.3,0.00221207]
[1645990803191,1.27764087,2655.4,2655.3,0.00221207]
[1645990803388,0.0347095,2655.6,2654.9,0.00185972]
[1645990803589,1.27764087,2655.5,2655.2,0.00221215]
[1645990804089,1.30718,2655.4,2655.2,0.00221215]
[1645990804291,1.64224087,2655.3,2655.2,0.00221215]
[1645990804489,2.29625947,2655.3,2654.9,0.00185972]
[1645990804690,1.64224087,2655.2,2655.0,0.00221228]
[1645990804895,0.94258,2655.4,2655.0,0.00221228]
[1645990804896,1.64224087,2655.1,2655.0,0.00221228]
[1645990805743,2.58496087,2655.1,2654.9,0.00185972]
[1645990806139,1.64224087,2655.0,2654.9,0.00185972]
[1645990807441,2.29625947,2655.0,2654.9,0.00185972]
[1645990808441,2.87361497,2655.0,2654.9,0.00185972]
[1645990808644,2.87361497,2655.0,2654.7,0.00221257]
[1645990808941,0.3646,2654.8,2654.7,0.00221257]
[1645990809189,0.00019439,2654.4,2653.9,0.1506]
[1645990809391,0.00019439,2654.4,2653.6,0.6646]
[1645990809595,0.00019439,2654.4,2653.9,0.3646]
[1645990809789,0.00019439,2654.4,2654.1,0.3646]
[1645990809989,0.00019439,2654.4,2654.2,4.3036]
[1645990810193,0.02169156,2655.1,2654.5,0.3646]
[1645990810394,0.86461672,2656.1,2655.0,0.3646]
[1645990810395,0.6540186,2656.1,2655.0,0.3646]
[1645990810603,1.00281669,2656.4,2655.2,0.3646]
[1645990810604,0.6540186,2656.4,2655.2,0.3646]
[1645990810805,0.66065736,2656.4,2655.4,0.3646]
[1645990810998,0.66065736,2656.4,2655.4,0.9542]
[1645990811398,0.66065736,2656.4,2656.0,1.44387886]
[1645990811607,0.6540186,2656.6,2656.0,1.44387886]
[1645990811800,0.6540186,2656.5,2656.0,1.44387886]
[1645990811998,0.00664274,2656.4,2656.0,1.44387886]
[1645990812803,0.6540186,2656.7,2656.0,1.44387886]
[1645990813245,0.00664349,2656.4,2656.0,1.80847886]
[1645990813451,0.00664349,2656.4,2656.0,1.44387886]
[1645990813843,0.00664349,2656.4,2656.0,12.92387886]
[1645990814047,0.6540186,2656.9,2656.0,12.92387886]
[1645990814243,0.6540186,2657.0,2656.0,13.22387886]
[1645990814445,0.00664349,2656.4,2656.0,1.44387886]
[1645990814851,0.00664349,2656.4,2655.9,0.15239038]
[1645990815250,0.6540186,2656.8,2655.7,1.36920075]
[1645990815449,0.6540186,2656.8,2655.6,0.1504]
[1645990815650,0.00662018,2656.4,2655.6,0.1504]
[1645990815853,0.00662018,2656.4,2655.6,11.6304]
[1645990816155,0.00662018,2656.4,2655.6,11.48]
[1645990816354,0.00662018,2656.4,2655.6,0.3646]
[1645990816553,1.0217,2656.9,2655.7,0.18008108]
[1645990816797,0.00661981,2656.4,2656.2,1.33437356]
[1645990816998,0.00661981,2656.4,2656.2,1.69897356]
[1645990817400,1.981e-05,2656.4,2656.3,0.8036]
[1645990817800,1.0217,2656.9,2656.3,0.8036]
[1645990818000,1.0217,2656.9,2656.5,0.3646]
[1645990818201,1.01919232,2656.9,2656.5,0.3646]
[1645990819003,1.01919232,2656.9,2656.0,0.00165469]
[1645990819209,1.01919232,2656.9,2656.4,0.00246037]
[1645990819210,0.00663938,2656.8,2656.4,0.00246037]
[1645990820205,1.01919232,2656.9,2656.0,0.00165469]
[1645990820438,0.00663938,2656.7,2656.3,0.00246046]
[1645990821244,1.01919232,2656.9,2656.0,11.48165469]
[1645990821451,1.01919232,2656.9,2656.0,11.84625469]
[1645990821647,0.00663938,2656.6,2656.4,11.48]
[1645990822449,3.938e-05,2656.6,2656.4,12.32468108]
[1645990822649,1.01919232,2656.9,2656.4,12.76368108]
[1645990822847,3.938e-05,2656.6,2656.4,12.76368108]
[1645990823250,3.938e-05,2656.6,2656.5,0.00174971]
[1645990823449,3.938e-05,2656.6,2656.5,12.28534971]
[1645990823649,0.02594655,2656.7,2656.5,12.28534971]
[1645990823650,0.02594655,2656.7,2656.5,12.46543079]
[1645990824291,3.6504,2658.0,2656.6,20.0]
[1645990824493,3.6504,2658.0,2656.9,11.8446]
[1645990824494,0.1504,2658.0,2656.9,11.8446]
[1645990824699,0.00193019,2658.1,2657.0,5.439]
[1645990824898,0.00193019,2658.1,2657.1,11.8446]
[1645990825096,0.00193019,2658.1,2657.2,0.439]
[1645990825297,0.58617849,2657.1,2656.9,11.48]
[1645990825497,0.58617849,2657.1,2657.0,11.48]
[1645990826601,7.849e-05,2657.1,2657.0,11.48]
[1645990826797,0.1504,2658.4,2657.0,11.78]
[1645990827001,0.3419,2658.6,2657.0,11.78]
[1645990827002,0.3419,2658.6,2657.7,11.8446]
[1645990827201,0.3419,2658.6,2657.2,23.21418239]
[1645990827202,0.3419,2658.6,2657.8,0.439]
[1645990827400,0.3419,2658.6,2657.7,0.3]
[1645990827801,0.00664004,2657.8,2657.6,0.739]
[1645990828033,0.00664004,2657.8,2657.6,1.1036]
[1645990828235,0.00664004,2657.8,2657.7,11.8446]
[1645990828533,0.01669632,2658.0,2657.7,11.8446]
[1645990828737,0.00664004,2657.8,2657.7,11.8446]
[1645990829537,4.004e-05,2657.8,2657.7,12.2836]
[1645990829738,0.28709997,2659.1,2657.8,20.0]
[1645990830038,0.13819997,2659.1,2658.6,1.04090292]
[1645990830237,1.18055045,2659.0,2658.6,1.04090292]
[1645990830537,1.18055045,2659.0,2658.1,11.48]
[1645990830741,0.13819997,2659.1,2658.1,11.8446]
[1645990831044,0.15240042,2659.8,2658.4,11.8446]
[1645990831342,1.17935248,2659.7,2658.6,11.8446]
[1645990831547,1.17935248,2659.7,2659.2,1.39415745]
[1645990831799,0.00350042,2660.0,2659.2,12.87415745]
[1645990831995,0.00350042,2660.1,2659.2,12.87415745]
[1645990832193,0.1489,2660.2,2659.2,12.87415745]
[1645990832396,0.00664001,2659.6,2659.2,12.87415745]
[1645990833403,0.00350042,2660.1,2659.2,12.87415745]
[1645990833603,0.00659572,2659.5,2659.2,12.87415745]
[1645990833808,0.00659572,2659.5,2658.7,0.25]
[1645990834407,0.1489,2659.4,2658.7,0.25]
[1645990834604,0.00350042,2659.8,2658.7,0.25]
[1645990834802,0.00659572,2659.2,2658.1,11.48]
[1645990835203,0.00659572,2659.2,2658.1,0.94099]
[1645990835448,0.00659572,2659.2,2658.2,0.18008108]
[1645990835651,0.00350042,2659.8,2658.4,1.88144]
[1645990835853,0.00350042,2659.8,2658.4,2.32044]
[1645990836049,0.00350042,2659.8,2658.1,0.1504]
[1645990836050,0.00350042,2659.8,2658.3,0.25]
[1645990836450,0.3646,2659.6,2658.3,0.25]
[1645990836851,0.00350042,2659.8,2658.3,0.25]
[1645990837054,1.14704121,2659.8,2658.3,0.25]
[1645990837351,0.27123864,2659.6,2658.3,0.25]
[1645990837551,0.00350042,2659.8,2658.3,0.25]
[1645990837952,0.00350042,2659.8,2658.4,13.3617601]
[1645990838153,0.00350042,2659.8,2658.4,12.90095118]
[1645990838352,0.01277847,2659.7,2658.8,0.00174756]
[1645990839392,0.01277847,2659.7,2659.2,11.48]
[1645990839599,0.01277847,2659.7,2659.4,11.48]
[1645990839995,0.1265026,2660.3,2659.6,11.48]
[1645990840291,0.90247812,2659.4,2659.2,0.439]
[1645990840494,0.90247812,2659.4,2659.3,0.1504]
[1645990840897,0.90247812,2659.4,2659.3,11.6304]
[1645990841199,0.90247812,2659.4,2659.3,12.82386244]
[1645990841401,7.812e-05,2659.4,2659.3,12.9355659]
[1645990841600,7.812e-05,2659.4,2659.3,13.3745659]
[1645990841800,7.812e-05,2659.4,2659.3,13.6745659]
[1645990842206,7.812e-05,2659.4,2659.3,13.85464698]
[1645990842401,3.863e-05,2659.5,2659.4,20.0]
[1645990842602,0.1265026,2660.3,2659.4,20.0]
[1645990842603,0.1265026,2660.3,2659.6,11.48]
[1645990842800,0.1265026,2660.3,2659.8,11.48]
[1645990843047,0.0265026,2660.3,2660.0,11.48]
[1645990843245,0.0265026,2660.3,2660.0,0.439]
[1645990843646,0.0265026,2660.3,2659.6,1.8804908]
[1645990843647,0.0265026,2660.3,2659.8,1.13696062]
[1645990844548,0.0265026,2660.3,2659.9,0.9403]
[1645990844752,0.0265026,2660.3,2659.6,13.5106908]
[1645990844947,0.0265026,2660.3,2659.6,0.1502]
[1645990845348,0.0265026,2660.3,2659.5,1.88209807]
[1645990845349,0.0265026,2660.3,2659.5,0.00163807]
[1645990845547,0.0265026,2660.3,2659.8,12.64614518]
[1645990845947,0.0265026,2660.3,2659.8,1.16614518]
[1645990846348,0.0265026,2660.3,2659.9,11.48]
[1645990846552,0.0265026,2660.3,2659.9,1.0905706]
[1645990846792,0.00663862,2660.2,2659.9,0.9403706]
[1645990847498,0.00663862,2660.2,2659.9,1.8807406]
[1645990847694,0.0265026,2660.3,2659.9,1.8307406]
[1645990847894,0.0265026,2660.3,2660.0,0.3]
[1645990848095,0.00663862,2660.2,2660.0,0.3]
[1645990848294,0.01629777,2660.2,2659.9,13.4609406]
[1645990848698,0.01629777,2660.2,2660.0,1.40735694]
[1645990848996,3.6489,2661.7,2660.0,1.40735694]
[1645990848997,0.3646,2661.6,2660.1,11.49398729]
[1645990849198,0.5135,2661.6,2660.2,0.4402436]
[1645990849397,0.3646,2661.6,2660.3,11.48]
[1645990849798,0.3646,2661.6,2660.3,9.98]
[1645990850002,0.3646,2661.5,2660.3,9.98]
[1645990850201,0.3646,2661.3,2660.1,0.30371729]
[1645990850464,0.3646,2661.1,2659.7,0.00163798]
[1645990850652,3.5,2661.2,2659.7,0.00163798]
[1645990850653,0.3646,2660.9,2659.7,0.00163798]
[1645990850855,0.3646,2660.7,2659.7,0.00163798]
[1645990851061,5.0,2660.1,2659.7,0.00163798]
[1645990851356,0.36650971,2659.6,2658.8,0.1503]
[1645990851554,0.3646,2659.4,2658.8,0.1503]
[1645990851753,0.3646,2659.4,2659.2,0.00084691]
[1645990851956,0.08448267,2659.5,2659.2,0.00084691]
[1645990852560,0.08448267,2659.5,2658.4,0.25]
[1645990852757,0.08448267,2659.5,2658.5,0.1504]
[1645990852958,0.08448267,2659.5,2658.8,0.00084702]
[1645990853754,0.08448267,2659.5,2658.4,0.25]
[1645990853956,0.08448267,2659.5,2658.6,0.00084709]
[1645990854797,0.08448267,2659.5,2657.6,2.06540885]
[1645990854798,0.3646,2659.3,2657.6,2.06540885]
[1645990854999,0.3646,2659.3,2657.6,0.25]
[1645990855201,0.3646,2659.3,2658.5,0.00084712]
[1645990855801,0.5135,2659.2,2658.5,0.00084712]
[1645990856200,0.5135,2659.2,2658.1,0.5]
[1645990856401,0.5135,2659.2,2658.3,0.00083871]
[1645990856802,0.3646,2659.4,2658.3,0.00083871]
[1645990857200,0.1489,2659.3,2658.3,0.00083871]
[1645990857401,0.1489,2659.3,2658.1,0.5]
[1645990857608,0.1489,2659.3,2658.4,0.18008108]
[1645990857809,0.1489,2659.3,2658.5,0.439]
[1645990858062,0.00190971,2659.6,2658.6,0.1504]
[1645990858264,0.00937241,2659.4,2658.6,0.1504]
[1645990858565,0.00937241,2659.4,2658.4,1.11948535]
[1645990858963,0.00937241,2659.4,2658.6,0.00083863]
[1645990859567,0.515,2659.3,2658.6,0.00083863]
[1645990859765,0.515,2659.3,2658.2,0.75]
[1645990859964,0.3646,2659.1,2658.2,0.75]
[1645990860166,0.3646,2659.1,2658.5,0.00083866]
[1645990860965,0.3646,2659.1,2658.2,1.84382996]
[1645990861168,0.3646,2659.1,2658.2,0.75]
[1645990861369,0.1504,2659.3,2658.3,0.00083873]
[1645990861571,0.00937241,2659.4,2658.5,11.8446]
[1645990861790,0.00937241,2659.4,2658.7,11.8446]
[1645990861993,0.00937241,2659.4,2658.7,12.2836]
[1645990862190,0.00937241,2659.4,2658.9,11.8446]
[1645990862397,7.241e-05,2659.4,2659.1,11.48]
[1645990862692,7.241e-05,2659.4,2659.2,12.2836]
[1645990862896,7.241e-05,2659.4,2659.2,12.5836]
[1645990863094,7.241e-05,2659.4,2659.3,0.1504]
[1645990863295,3.674e-05,2659.9,2659.7,0.3646]
[1645990863498,1.06973895,2660.9,2659.9,11.8446]
[1645990863694,0.15366484,2661.2,2660.1,11.8446]
[1645990863995,0.00346484,2660.9,2660.3,11.48]
[1645990864197,0.1502,2661.0,2660.3,11.48]
[1645990864496,0.1502,2661.0,2660.8,1.33219785]
[1645990864696,0.30339197,2660.5,2660.4,13.33932915]
[1645990864896,0.30339197,2660.5,2660.4,14.78052915]
[1645990865095,0.30339197,2660.5,2660.4,12.90032915]
[1645990866366,0.00346484,2661.5,2660.6,11.48]
[1645990866367,0.1502,2661.4,2660.6,11.48]
[1645990866569,1.04014406,2661.3,2660.6,11.48]
[1645990866967,0.1502,2661.3,2660.6,11.48]
[1645990867166,4.36461672,2662.2,2660.6,11.48]
[1645990867167,0.00346484,2661.5,2660.6,11.48]
[1645990867367,0.00663298,2661.1,2660.8,11.8446]
[1645990867568,0.00663298,2661.1,2661.0,11.48]
[1645990867769,0.00663298,2661.1,2661.0,11.919]
[1645990868272,0.00346484,2661.7,2661.0,13.34572781]
[1645990868470,0.00663298,2661.2,2661.0,13.64572781]
[1645990868668,0.00663298,2661.2,2661.0,13.34572781]
[1645990869494,0.00346484,2661.8,2661.2,11.48]
[1645990869690,0.65444999,2662.1,2661.6,1.1442682]
[1645990869691,0.1502,2662.0,2661.6,1.1442682]
[1645990869892,1.04551232,2661.9,2661.6,1.1442682]
[1645990870091,1.04204748,2661.9,2661.6,1.1442682]
[1645990870294,1.04204748,2661.8,2661.6,12.6242682]
[1645990870496,0.02652209,2662.2,2661.8,11.48]
[1645990870698,0.60444999,2662.5,2662.0,11.48]
[1645990870897,0.60444999,2662.5,2662.2,1.38611735]
[1645990870898,0.00346484,2662.4,2662.2,1.38611735]
[1645990871095,0.86461672,2662.8,2662.0,0.439]
[1645990871096,0.1502,2662.7,2662.0,0.439]
[1645990871295,0.1502,2662.7,2661.2,0.3287]
[1645990871296,5.0,2662.1,2660.9,0.195689]
[1645990871498,5.0,2661.8,2660.6,0.25]
[1645990871697,0.01240176,2661.0,2660.6,0.25]
[1645990871994,0.01240176,2661.0,2660.4,0.00145457]
[1645990871995,0.13819996,2660.9,2660.4,0.00145457]
[1645990872201,0.00346484,2661.3,2660.4,0.00145457]
[1645990872395,0.00662736,2661.6,2660.4,0.00145457]
[1645990872696,0.02650365,2662.2,2661.2,0.9397998]
[1645990872942,0.02650365,2662.2,2661.0,2.3185995]
[1645990873146,2.48244192,2663.5,2661.7,0.00145349]
[1645990873147,4.50281668,2662.6,2661.7,0.00145349]
[1645990873347,0.3646,2662.5,2661.7,0.00145349]
[1645990873551,0.3646,2662.3,2661.7,0.00145349]
[1645990873748,0.3646,2661.9,2661.7,0.00145349]
[1645990873948,3.8646,2661.8,2661.7,0.00145349]
[1645990874150,0.3646,2661.8,2661.7,0.00145349]
[1645990874347,0.3646,2661.8,2661.3,0.24726549]
[1645990874547,0.3646,2661.8,2660.6,0.4002]
[1645990874750,0.40278203,2659.8,2659.7,2.7834]
[1645990875049,0.40278203,2659.8,2659.7,11.48]
[1645990875452,0.40278203,2659.8,2659.2,1.88094]
[1645990875648,0.40278203,2659.8,2659.6,1.06437285]
[1645990876051,0.00344842,2661.0,2659.6,12.54437285]
[1645990876249,0.00344842,2661.0,2659.7,8.5]
[1645990876700,1.2434,2661.6,2659.6,1.06437285]
[1645990876701,0.3646,2661.5,2659.6,1.06437285]
[1645990876896,0.3646,2661.5,2659.8,0.00097056]
[1645990877503,5.0,2661.4,2659.8,0.00097056]
[1645990877701,0.3646,2661.3,2659.5,0.89143056]
[1645990877903,0.3646,2661.0,2659.7,1.38013725]
[1645990878203,0.3646,2661.0,2660.1,0.00097047]
[1645990878204,0.3646,2660.8,2660.1,0.00097047]
[1645990878403,5.0,2660.5,2660.1,0.00097047]
[1645990878613,0.3646,2660.4,2660.1,0.00097047]
[1645990878803,5.0,2660.2,2660.1,0.00097047]
[1645990879002,5.3646,2660.2,2659.7,0.00136023]
[1645990879400,0.439,2660.4,2659.7,0.00136023]
[1645990879401,0.3646,2659.9,2659.7,0.00136023]
[1645990879607,0.3646,2659.9,2658.7,8.69833373]
[1645990879608,0.3646,2659.7,2658.7,7.3]
[1645990879806,0.3646,2659.3,2658.3,0.4002]
[1645990880003,0.3646,2659.3,2658.3,0.25]
[1645990880205,0.3646,2659.3,2658.4,0.6354]
[1645990880434,0.1504,2659.6,2659.0,0.6354]
[1645990880640,0.1504,2660.0,2659.0,0.6354]
[1645990880840,0.1504,2660.0,2658.9,0.6354]
[1645990881043,0.3646,2659.9,2658.6,1.23672426]
[1645990881250,0.3646,2659.9,2656.8,0.38550433]
[1645990881251,5.0,2658.7,2656.8,0.38550433]
[1645990881447,5.0,2658.7,2656.7,0.5]
[1645990881448,5.0,2657.1,2656.7,0.25]
[1645990881650,3.63819996,2657.0,2655.0,0.70596103]
[1645990881848,0.01239931,2656.8,2655.0,0.25]
[1645990882049,0.8036,2656.7,2655.0,0.25]
[1645990882245,3.63819996,2657.0,2655.3,1.25958318]
[1645990882446,3.63819996,2657.0,2655.0,0.25]
[1645990882447,1.0,2655.9,2655.0,0.25]
[1645990882848,3.5,2656.4,2655.0,0.25]
[1645990883049,1.0,2655.7,2655.0,0.25]
[1645990883244,1.0,2655.7,2654.4,0.25]
[1645990883445,1.0,2655.7,2655.0,0.1506]
[1645990883647,3.5,2656.4,2655.0,1.21050481]
[1645990883949,3.00991358,2656.5,2655.0,1.21050481]
[1645990884198,1.08051996,2657.0,2655.0,1.21050481]
[1645990884199,3.5,2656.9,2655.0,1.21050481]
[1645990884400,0.13819996,2657.0,2655.3,0.01277724]
[1645990884599,0.13819996,2657.0,2655.9,1.42563107]
[1645990884799,0.13819996,2657.0,2655.6,0.25]
[1645990885301,0.13819996,2657.0,2655.7,0.1504]
[1645990885498,0.13819996,2657.0,2656.2,0.00583131]
[1645990886299,0.13819996,2657.0,2655.9,1.01442415]
[1645990886505,0.13819996,2657.0,2656.3,0.00583098]
[1645990887002,0.15064872,2657.0,2656.3,0.00583098]
[1645990887202,0.13819996,2657.0,2656.3,0.00583098]
[1645990887601,0.13819996,2657.0,2655.6,0.2]
[1645990887801,0.13819996,2657.0,2656.4,0.00583087]
[1645990888045,0.0032988,2656.2,2656.1,0.0044319]
[1645990888648,0.0032988,2656.2,2656.0,0.00105103]
[1645990888848,0.0032988,2656.2,2656.0,11.63145103]
[1645990888849,9.88e-05,2656.2,2656.0,11.63145103]
[1645990889055,9.88e-05,2656.2,2656.0,0.15145103]
[1645990889453,9.88e-05,2656.2,2656.1,2.9304]
[1645990889651,9.88e-05,2656.2,2656.1,3.0808]
[1645990889852,9.88e-05,2656.2,2656.1,3.3808]
[1645990890053,9.88e-05,2656.2,2656.1,3.8198]
[1645990890254,9.88e-05,2656.2,2656.1,8.8198]
[1645990890552,9.88e-05,2656.2,2656.1,20.47699727]
[1645990890753,9.88e-05,2656.2,2656.1,15.2998]
[1645990890955,9.88e-05,2656.2,2656.1,20.2998]
[1645990891154,9.88e-05,2656.2,2656.1,21.46824901]
[1645990891352,0.33887869,2658.8,2656.1,21.46824901]
[1645990891353,0.16335316,2658.8,2656.9,0.94114]
[1645990891561,0.01295316,2658.8,2657.1,11.48]
[1645990891801,0.37755316,2658.8,2657.1,11.78]
[1645990892002,0.3646,2658.6,2657.2,0.1504]
[1645990892501,0.16058143,2658.7,2657.2,0.1504]
[1645990892502,0.3646,2658.4,2657.7,1.19501968]
[1645990892701,0.1504,2659.2,2657.7,1.19672774]
[1645990892702,0.1504,2658.7,2657.7,1.19672774]
[1645990892902,0.3646,2658.7,2657.7,1.19672774]
[1645990893101,4.015,2658.6,2657.7,1.19672774]
[1645990893303,4.015,2658.6,2657.7,0.00170806]
[1645990893304,0.3646,2658.4,2657.7,0.00170806]
[1645990893504,0.3646,2658.4,2657.0,0.689]
[1645990893704,3.8646,2658.3,2657.0,0.689]
[1645990893906,0.3646,2658.3,2657.9,0.00546336]
[1645990894307,0.21920854,2658.5,2657.9,1.28280339]
[1645990894507,0.1504,2658.7,2657.9,1.28280339]
[1645990894806,0.05199372,2657.2,2657.1,11.6305]
[1645990895207,0.05199372,2657.2,2657.1,12.2951]
[1645990895463,0.05199372,2657.2,2657.1,14.10333026]
[1645990896073,3.8646,2658.6,2657.3,11.48]
[1645990896270,0.1504,2658.9,2657.6,11.48]
[1645990896473,0.31666891,2659.2,2657.6,11.8446]
[1645990896676,0.13819996,2659.2,2657.6,12.5836]
[1645990897171,0.1504,2659.3,2657.6,12.5836]
[1645990897372,0.00663143,2659.4,2658.1,0.00546284]
[1645990897678,0.3646,2659.3,2658.1,0.00546284]
[1645990897873,0.515,2659.3,2658.1,0.00546284]
[1645990898074,0.3646,2659.1,2658.1,0.00546284]
[1645990898276,0.3646,2658.9,2658.1,0.00546284]
[1645990898477,0.3646,2658.9,2658.0,0.00113828]
[1645990898675,0.1504,2658.8,2658.2,0.00874042]
[1645990899073,1.45635,2658.8,2658.2,0.00874042]
[1645990899508,1.45635,2658.8,2658.0,0.00113828]
[1645990899706,1.45635,2658.8,2658.2,1.23836262]
[1645990899907,1.45635,2658.8,2658.2,0.00546276]
[1645990900108,1.20635,2658.8,2658.2,0.00546276]
[1645990900309,1.25516,2658.8,2658.2,0.00546276]
[1645990900708,1.15635,2658.8,2658.0,0.00113828]
[1645990900907,1.15635,2658.8,2658.2,1.38908989]
[1645990901108,1.15635,2658.8,2658.2,1.39455265]
[1645990901308,0.79175,2658.8,2658.2,1.39455265]
[1645990901507,0.79175,2658.8,2658.2,0.00546276]
[1645990901910,0.79175,2658.8,2658.0,0.00113828]
[1645990902408,0.79175,2658.8,2658.2,0.00546276]
[1645990903237,0.79175,2658.8,2658.3,0.00114704]
[1645990903435,1.15635,2658.8,2658.3,0.00114704]
[1645990903637,3.6504,2658.7,2658.3,0.00114704]
[1645990903838,3.6504,2658.7,2658.2,0.00546276]
[1645990903839,0.1504,2658.7,2658.2,0.00483781]
[1645990904039,3.5,2658.7,2658.2,0.00483781]
[1645990904341,0.3646,2658.6,2657.8,0.25]
[1645990904546,0.3646,2658.5,2657.8,0.25]
[1645990905540,0.3646,2658.4,2657.7,1.18619005]
[1645990905841,1.88272,2659.0,2657.7,1.18619005]
[1645990905842,0.94121,2659.1,2657.9,0.00542429]
[1645990906039,0.16109618,2658.8,2657.9,0.00542429]
[1645990906442,3.5,2658.9,2657.9,0.00542429]
[1645990906726,0.3646,2658.8,2657.4,0.1504]
[1645990907011,0.94121,2659.1,2658.1,0.00542389]
[1645990907216,0.1504,2659.3,2658.1,0.00542389]
[1645990907810,0.515,2659.3,2658.1,0.00542389]
[1645990908015,0.1504,2659.3,2658.0,1.42347667]
[1645990908213,0.1504,2659.3,2658.2,0.00867789]
[1645990908817,0.515,2659.3,2658.2,0.00867789]
[1645990909217,0.515,2659.3,2658.5,1.31922611]
[1645990909519,0.515,2659.3,2658.5,12.79922611]
[1645990909520,0.1504,2659.3,2658.5,12.79922611]
[1645990910016,0.00663242,2659.4,2658.5,12.79922611]
[1645990910220,0.00663242,2659.4,2658.5,1.31922611]
[1645990910444,0.50279996,2659.6,2658.5,1.31922611]
[1645990910445,4.00279996,2659.6,2658.5,1.31922611]
[1645990910649,0.00663279,2659.4,2658.5,1.31922611]
[1645990911051,0.00663279,2659.4,2658.4,0.00325398]
[1645990911554,0.3646,2659.4,2657.9,0.00106462]
[1645990911751,0.3646,2659.4,2658.4,0.00325398]
[1645990911752,0.3646,2659.3,2658.4,0.00325398]
[1645990912150,0.1504,2659.2,2658.4,0.00325398]
[1645990912356,0.3646,2659.0,2658.4,0.00325398]
[1645990912752,3.8646,2659.4,2658.2,1.01607234]
[1645990912953,0.3646,2659.4,2658.2,1.01607234]
[1645990913153,0.37123229,2659.4,2658.2,1.02475023]
[1645990913354,0.3646,2659.2,2658.6,1.32922121]
[1645990914794,0.3646,2659.2,2657.9,0.1504]
[1645990914795,0.3646,2659.2,2658.3,1.04836531]
[1645990915196,1.30578,2659.3,2658.3,1.04836531]
[1645990915498,1.30578,2659.3,2657.9,0.1504]
[1645990915696,0.3646,2659.1,2657.9,0.1504]
[1645990916697,0.3646,2659.2,2658.2,1.02456774]
[1645990917796,0.00663365,2658.8,2658.4,0.00488086]
[1645990918444,0.00663365,2658.8,2658.4,0.00693932]
[1645990918845,0.3646,2659.2,2658.4,0.00205846]
[1645990919048,0.00663351,2658.8,2658.4,0.00205846]
[1645990919246,0.00663351,2658.8,2658.6,1.25748641]
[1645990919546,0.66014539,2658.5,2658.4,0.00205846]
[1645990920552,4.52474539,2658.5,2658.4,0.00205846]
[1645990920754,4.52474539,2658.5,2658.2,0.00488131]
[1645990920755,11.00173517,2658.5,2658.2,0.00418146]
[1645990920951,11.00173517,2658.5,2656.2,2.3852]
[1645990920952,0.3646,2658.1,2656.2,2.3852]
[1645990921149,0.3646,2657.9,2656.2,2.3852]
[1645990921450,5.0108478,2658.3,2656.2,2.3852]
[1645990921451,0.1504,2657.8,2656.2,2.3852]
[1645990921699,3.5,2658.4,2656.3,0.1504]
[1645990921700,3.6504,2658.2,2656.3,0.1504]
[1645990921908,6.4791473,2658.1,2656.7,0.25]
[1645990922103,5.13118157,2658.0,2656.2,0.1504]
[1645990922304,0.3646,2657.9,2656.2,0.1504]
[1645990922504,3.6504,2658.0,2656.0,0.3646]
[1645990922505,3.5,2657.8,2656.0,0.3646]
[1645990922710,3.6504,2658.0,2657.1,0.00439492]
[1645990922906,1.92147337,2657.9,2657.1,0.00439492]
[1645990923107,5.13287337,2657.8,2657.1,0.00439492]
[1645990923307,0.3146,2657.7,2657.1,0.00439492]
[1645990923506,1.48247337,2657.7,2657.1,0.00439492]
[1645990923707,3.5,2658.2,2656.7,0.25]
[1645990923906,3.5,2658.2,2657.5,1.22639279]
[1645990924106,1.48357657,2658.1,2657.2,0.00439483]
[1645990924306,1.48357657,2658.0,2657.2,0.00439483]
[1645990924506,3.65703413,2658.3,2657.2,0.00439483]
[1645990924706,6.48228358,2658.2,2657.2,0.00439483]
[1645990924911,1.88359,2657.9,2656.7,0.25]
[1645990925108,4.98391785,2657.8,2657.3,0.00439458]
[1645990925311,1.88359,2657.9,2657.3,0.00439458]
[1645990925312,0.3646,2657.6,2657.3,0.00439458]
[1645990925551,1.88359,2657.9,2657.3,0.00439458]
[1645990925750,4.4417277,2658.1,2657.3,0.00439458]
[1645990925751,3.5,2658.1,2657.3,0.00439458]
[1645990925950,1.4847586,2658.0,2657.0,1.23426264]
[1645990926152,0.94172,2657.8,2657.0,1.23426264]
[1645990926353,0.94172,2657.8,2657.4,1.1000251]
[1645990926551,0.94172,2657.8,2657.3,0.00439458]
[1645990927151,0.94172,2657.8,2656.8,0.1504]
[1645990927555,1.8833,2658.2,2656.8,0.1504]
[1645990927556,4.8062,2658.1,2657.4,1.20577839]
[1645990927753,1.48527753,2658.0,2657.4,1.20577839]
[1645990928253,1.48527753,2658.0,2657.4,1.2075267]
[1645990928654,1.48527753,2658.0,2657.4,1.21192112]
[1645990929493,1.84987753,2658.0,2657.4,0.00614273]
[1645990929693,0.3646,2657.8,2657.4,0.00174831]
[1645990929896,0.3646,2657.8,2657.4,0.00614273]
[1645990930098,1.48920435,2657.7,2657.4,0.00614273]
[1645990930296,0.3646,2657.8,2657.4,0.00614273]
[1645990930504,1.4902681,2657.7,2657.4,0.00614273]
[1645990930999,0.9416,2658.1,2657.4,0.00174831]
[1645990931200,1.32432502,2658.5,2657.4,20.00174831]
[1645990931401,0.1504,2658.9,2657.7,0.3646]
[1645990931601,0.13819996,2659.6,2657.8,0.01216123]
[1645990931802,0.13819996,2659.6,2657.9,11.8446]
[1645990932001,0.3646,2659.5,2657.9,12.2836]
[1645990932199,0.3646,2659.5,2658.0,0.1504]
[1645990932401,0.13819996,2659.6,2657.8,0.25]
[1645990932402,0.3646,2659.3,2657.8,0.25]
[1645990932601,0.13819996,2659.6,2657.8,0.25]
[1645990932603,0.3646,2659.1,2657.8,0.25]
[1645990933076,0.3646,2659.1,2657.9,0.1504]
[1645990933274,3.5,2659.3,2657.9,0.1504]
[1645990933472,0.3646,2659.5,2657.9,0.1504]
[1645990933772,0.3646,2659.3,2657.9,0.1504]
[1645990933973,0.3646,2659.1,2657.9,0.1504]
[1645990934274,0.3646,2658.9,2657.8,0.25]
[1645990934772,0.00663593,2658.6,2658.2,0.00480776]
[1645990934972,1.28394741,2657.3,2657.2,3.02847]